[Event "Titled Tuesday Blitz July 05 Late 2022"]
[White "Hakobyan, Aram"]
[Black "Livaic, Leon"]
[WhiteFideId "13306677"]
[BlackFideId "14531534"]
[WhiteElo "2557"]
[BlackElo "2540"]
[Result "1-0"]
[Round "04"]
[TimeControl "180+1"]
[Date "2022.07.05"]
[WhiteClock "0:00:07"]
[BlackClock "0:00:03"]

1. d4 {[%clk 0:02:56]}  e6 {[%clk 0:02:59]} 2. c4 {[%clk 0:02:57]}  d5 {[%clk 0:02:59]} 3. Nc3 {[%clk 0:02:56]}  Nf6 {[%clk 0:03:00]} 4. cxd5 {[%clk 0:02:54]}  exd5 {[%clk 0:03:00]} 5. a3 {[%clk 0:02:55]}  c6 {[%clk 0:02:59]} 6. Bf4 {[%clk 0:02:55]}  Bd6 {[%clk 0:02:59]} 7. Bxd6 {[%clk 0:02:55]}  Qxd6 {[%clk 0:03:00]} 8. e3 {[%clk 0:02:56]}  Bf5 {[%clk 0:02:59]} 9. Qf3 {[%clk 0:02:57]}  Bg6 {[%clk 0:02:58]} 10. h4 {[%clk 0:02:55]}  Bh5 {[%clk 0:02:51]} 11. Qf4 {[%clk 0:02:56]}  Qxf4 {[%clk 0:02:51]} 12. exf4 {[%clk 0:02:56]}  Bg6 {[%clk 0:02:43]} 13. h5 {[%clk 0:02:54]}  Bf5 {[%clk 0:02:14]} 14. f3 {[%clk 0:02:54]}  h6 {[%clk 0:02:14]} 15. g4 {[%clk 0:02:54]}  Bh7 {[%clk 0:02:10]} 16. f5 {[%clk 0:02:53]}  Nbd7 {[%clk 0:02:02]} 17. Bd3 {[%clk 0:02:53]}  O-O-O {[%clk 0:02:02]} 18. Nge2 {[%clk 0:02:53]}  Ne8 {[%clk 0:02:02]} 19. Kf2 {[%clk 0:02:53]}  Nd6 {[%clk 0:02:03]} 20. Rhe1 {[%clk 0:02:42]}  Rhe8 {[%clk 0:02:03]} 21. Nf4 {[%clk 0:02:36]}  Bg8 {[%clk 0:02:03]} 22. Rac1 {[%clk 0:02:31]}  Rxe1 {[%clk 0:02:02]} 23. Kxe1 {[%clk 0:02:25]}  Re8+ {[%clk 0:02:02]} 24. Kd2 {[%clk 0:02:25]}  Kd8 {[%clk 0:02:00]} 25. Nce2 {[%clk 0:02:21]}  f6 {[%clk 0:01:57]} 26. b3 {[%clk 0:02:14]}  a6 {[%clk 0:01:55]} 27. Nc3 {[%clk 0:02:01]}  Nb5 {[%clk 0:01:43]} 28. Bxb5 {[%clk 0:01:55]}  axb5 {[%clk 0:01:43]} 29. Re1 {[%clk 0:01:54]}  Rxe1 {[%clk 0:01:43]} 30. Kxe1 {[%clk 0:01:55]}  Ke7 {[%clk 0:01:41]} 31. Nd3 {[%clk 0:01:53]}  Kd6 {[%clk 0:01:40]} 32. Kd2 {[%clk 0:01:50]}  Bf7 {[%clk 0:01:40]} 33. Ne2 {[%clk 0:01:48]}  b6 {[%clk 0:01:38]} 34. b4 {[%clk 0:01:46]}  Nb8 {[%clk 0:01:25]} 35. Nef4 {[%clk 0:01:44]}  Na6 {[%clk 0:01:25]} 36. Kc3 {[%clk 0:01:44]}  Nc7 {[%clk 0:01:25]} 37. Nb2 {[%clk 0:01:37]}  Kd7 {[%clk 0:01:24]} 38. a4 {[%clk 0:01:33]}  bxa4 {[%clk 0:01:25]} 39. Nxa4 {[%clk 0:01:34]}  Nb5+ {[%clk 0:01:26]} 40. Kd3 {[%clk 0:01:34]}  Kc7 {[%clk 0:01:25]} 41. Nc3 {[%clk 0:01:02]}  Nxc3 {[%clk 0:01:02]} 42. Kxc3 {[%clk 0:01:01]}  Kd6 {[%clk 0:01:02]} 43. Nd3 {[%clk 0:01:00]}  Be8 {[%clk 0:01:01]} 44. Nb2 {[%clk 0:00:59]}  c5 {[%clk 0:00:48]} 45. bxc5+ {[%clk 0:00:52]}  bxc5 {[%clk 0:00:49]} 46. dxc5+ {[%clk 0:00:53]}  Kxc5 {[%clk 0:00:49]} 47. Nd3+ {[%clk 0:00:54]}  Kd6 {[%clk 0:00:49]} 48. Kd4 {[%clk 0:00:54]}  Ba4 {[%clk 0:00:48]} 49. Nf4 {[%clk 0:00:55]}  Bd1 {[%clk 0:00:49]} 50. Ke3 {[%clk 0:00:53]}  Ke5 {[%clk 0:00:38]} 51. Ne6 {[%clk 0:00:53]}  Ba4 {[%clk 0:00:29]} 52. f4+ {[%clk 0:00:35]}  Kd6 {[%clk 0:00:30]} 53. Nxg7 {[%clk 0:00:36]}  Bd7 {[%clk 0:00:21]} 54. g5 {[%clk 0:00:32]}  Ke7 {[%clk 0:00:18]} 55. g6 {[%clk 0:00:18]}  Ba4 {[%clk 0:00:15]} 56. Ne6 {[%clk 0:00:15]}  Bc2 {[%clk 0:00:15]} 57. Nd4 {[%clk 0:00:14]}  Bb1 {[%clk 0:00:15]} 58. Kf3 {[%clk 0:00:12]}  Bd3 {[%clk 0:00:14]} 59. Kg3 {[%clk 0:00:12]}  Kf8 {[%clk 0:00:12]} 60. Kg4 {[%clk 0:00:12]}  Bb1 {[%clk 0:00:10]} 61. Ne6+ {[%clk 0:00:10]}  Ke7 {[%clk 0:00:10]} 62. Nd4 {[%clk 0:00:08]}  Kf8 {[%clk 0:00:10]} 63. Kg3 {[%clk 0:00:09]}  Ke7 {[%clk 0:00:10]} 64. Kf2 {[%clk 0:00:10]}  Kf8 {[%clk 0:00:08]} 65. Ke3 {[%clk 0:00:09]}  Be4 {[%clk 0:00:05]} 66. Ne6+ {[%clk 0:00:10]}  Ke7 {[%clk 0:00:05]} 67. Nc7 {[%clk 0:00:10]}  Bxf5 {[%clk 0:00:01]} 68. Nxd5+ {[%clk 0:00:11]}  Ke6 {[%clk 0:00:02]} 69. Kd4 {[%clk 0:00:06]}  Bg4 {[%clk 0:00:02]} 70. g7 {[%clk 0:00:06]}  Kf7 {[%clk 0:00:03]} 71. g8=Q+ {[%clk 0:00:07]} 1-0


[Site "https://www.chess.com"]

[Event "Titled Tuesday Blitz July 05 Late 2022"]
[White "Halkias, Stelios"]
[Black "Ezat, Mohamed"]
[WhiteFideId "4201809"]
[BlackFideId "10600906"]
[WhiteElo "2453"]
[BlackElo "2386"]
[Result "1-0"]
[Round "04"]
[TimeControl "180+1"]
[Date "2022.07.06"]
[WhiteClock "0:00:40"]
[BlackClock "0:00:39"]

1. e4 {[%clk 0:03:00]}  c6 {[%clk 0:02:58]} 2. d4 {[%clk 0:03:00]}  d5 {[%clk 0:02:58]} 3. e5 {[%clk 0:02:57]}  Bf5 {[%clk 0:02:58]} 4. h4 {[%clk 0:02:57]}  h5 {[%clk 0:02:57]} 5. Bd3 {[%clk 0:02:57]}  Bxd3 {[%clk 0:02:57]} 6. Qxd3 {[%clk 0:02:57]}  e6 {[%clk 0:02:58]} 7. Bg5 {[%clk 0:02:57]}  Qb6 {[%clk 0:02:54]} 8. Nd2 {[%clk 0:02:56]}  Qa6 {[%clk 0:02:52]} 9. c4 {[%clk 0:02:55]}  Bb4 {[%clk 0:02:50]} 10. b3 {[%clk 0:02:52]}  Nd7 {[%clk 0:02:49]} 11. Nf3 {[%clk 0:02:52]}  Ne7 {[%clk 0:02:47]} 12. O-O {[%clk 0:02:52]}  Nf5 {[%clk 0:02:34]} 13. Rfc1 {[%clk 0:02:46]}  O-O {[%clk 0:02:29]} 14. Nf1 {[%clk 0:02:45]}  f6 {[%clk 0:02:17]} 15. exf6 {[%clk 0:02:40]}  Nxf6 {[%clk 0:02:16]} 16. Bxf6 {[%clk 0:02:21]}  Rxf6 {[%clk 0:02:04]} 17. Ne3 {[%clk 0:02:21]}  Raf8 {[%clk 0:01:55]} 18. Ng5 {[%clk 0:02:07]}  Be7 {[%clk 0:01:44]} 19. Re1 {[%clk 0:02:01]}  c5 {[%clk 0:01:15]} 20. Nxf5 {[%clk 0:01:55]}  Rxf5 {[%clk 0:01:15]} 21. Rxe6 {[%clk 0:01:52]}  Bd6 {[%clk 0:01:14]} 22. Rae1 {[%clk 0:01:35]}  cxd4 {[%clk 0:01:12]} 23. Qxd4 {[%clk 0:01:20]}  Qa5 {[%clk 0:01:02]} 24. Re8 {[%clk 0:00:46]}  Rxf2 {[%clk 0:00:39]} 25. Qxf2 {[%clk 0:00:40]} 1-0


[Site "https://www.chess.com"]

[Event "Titled Tuesday Blitz July 05 Late 2022"]
[White "Iliaguev, Nisim"]
[Black "Shimanov, Aleksandr"]
[WhiteFideId "2817276"]
[BlackFideId "4198603"]
[WhiteElo "2107"]
[BlackElo "2605"]
[Result "1/2-1/2"]
[Round "04"]
[TimeControl "180+1"]
[Date "2022.07.05"]
[WhiteClock "0:00:39"]
[BlackClock "0:00:05"]

1. d4 {[%clk 0:03:00]}  Nf6 {[%clk 0:02:57]} 2. Nf3 {[%clk 0:02:59]}  g6 {[%clk 0:02:54]} 3. g3 {[%clk 0:02:58]}  c5 {[%clk 0:02:51]} 4. Bg2 {[%clk 0:02:58]}  Bg7 {[%clk 0:02:42]} 5. O-O {[%clk 0:02:58]}  Qc7 {[%clk 0:02:33]} 6. b3 {[%clk 0:02:54]}  O-O {[%clk 0:02:32]} 7. Bb2 {[%clk 0:02:55]}  d6 {[%clk 0:02:29]} 8. c4 {[%clk 0:02:54]}  Bg4 {[%clk 0:02:28]} 9. Nc3 {[%clk 0:02:52]}  Nc6 {[%clk 0:02:28]} 10. d5 {[%clk 0:02:45]}  Na5 {[%clk 0:02:28]} 11. Qd2 {[%clk 0:02:41]}  a6 {[%clk 0:02:27]} 12. h3 {[%clk 0:02:36]}  Bd7 {[%clk 0:02:27]} 13. Rac1 {[%clk 0:02:31]}  b5 {[%clk 0:02:25]} 14. cxb5 {[%clk 0:02:28]}  axb5 {[%clk 0:02:26]} 15. Rfe1 {[%clk 0:02:14]}  b4 {[%clk 0:01:52]} 16. Na4 {[%clk 0:02:14]}  Bxa4 {[%clk 0:01:51]} 17. bxa4 {[%clk 0:02:15]}  Ne4 {[%clk 0:01:30]} 18. Qc2 {[%clk 0:02:13]}  Bxb2 {[%clk 0:01:29]} 19. Qxb2 {[%clk 0:02:14]}  Nc3 {[%clk 0:01:30]} 20. Qc2 {[%clk 0:02:08]}  Nc4 {[%clk 0:01:25]} 21. Qd3 {[%clk 0:02:01]}  Nb6 {[%clk 0:01:21]} 22. e4 {[%clk 0:01:49]}  Rxa4 {[%clk 0:01:20]} 23. Qd2 {[%clk 0:01:42]}  Rxa2 {[%clk 0:01:12]} 24. Qh6 {[%clk 0:01:39]}  f6 {[%clk 0:01:12]} 25. Nh4 {[%clk 0:01:35]}  Rf7 {[%clk 0:01:00]} 26. Nxg6 {[%clk 0:01:28]}  hxg6 {[%clk 0:00:57]} 27. Qxg6+ {[%clk 0:01:28]}  Kf8 {[%clk 0:00:57]} 28. Qh5 {[%clk 0:01:22]}  Ke8 {[%clk 0:00:50]} 29. Bf3 {[%clk 0:01:16]}  Nd7 {[%clk 0:00:19]} 30. Bg4 {[%clk 0:01:15]}  Ne5 {[%clk 0:00:09]} 31. Qh8+ {[%clk 0:00:53]}  Rf8 {[%clk 0:00:08]} 32. Bh5+ {[%clk 0:00:50]}  Nf7 {[%clk 0:00:03]} 33. Bxf7+ {[%clk 0:00:41]}  Kxf7 {[%clk 0:00:04]} 34. Qh5+ {[%clk 0:00:41]}  Kg7 {[%clk 0:00:04]} 35. Qg4+ {[%clk 0:00:41]}  Kf7 {[%clk 0:00:04]} 36. Qh5+ {[%clk 0:00:42]}  Kg7 {[%clk 0:00:05]} 37. Qg4+ {[%clk 0:00:42]}  Kh8 {[%clk 0:00:05]} 38. Qh5+ {[%clk 0:00:39]}  Kg7 {[%clk 0:00:05]} 1/2-1/2


[Site "https://www.chess.com"]

[Event "Titled Tuesday Blitz July 05 Late 2022"]
[White "Jaracz, Pawel"]
[Black "Kamsky, Gata"]
[WhiteFideId "1102222"]
[BlackFideId "2000024"]
[WhiteElo "2459"]
[BlackElo "2645"]
[Result "0-1"]
[Round "04"]
[TimeControl "180+1"]
[Date "2022.07.05"]
[WhiteClock "0:00:12"]
[BlackClock "0:00:13"]

1. e4 {[%clk 0:03:00]}  e5 {[%clk 0:02:56]} 2. Nf3 {[%clk 0:03:00]}  Nc6 {[%clk 0:02:52]} 3. Bc4 {[%clk 0:03:00]}  Nf6 {[%clk 0:02:51]} 4. d3 {[%clk 0:03:00]}  h6 {[%clk 0:02:51]} 5. O-O {[%clk 0:02:59]}  d6 {[%clk 0:02:50]} 6. a4 {[%clk 0:03:00]}  g6 {[%clk 0:02:49]} 7. a5 {[%clk 0:03:00]}  a6 {[%clk 0:02:50]} 8. Nc3 {[%clk 0:02:57]}  Bg7 {[%clk 0:02:48]} 9. Nd5 {[%clk 0:02:52]}  Nxd5 {[%clk 0:02:45]} 10. Bxd5 {[%clk 0:02:52]}  O-O {[%clk 0:02:43]} 11. c3 {[%clk 0:02:43]}  Kh8 {[%clk 0:02:39]} 12. h3 {[%clk 0:02:05]}  f5 {[%clk 0:02:35]} 13. d4 {[%clk 0:02:00]}  exd4 {[%clk 0:02:00]} 14. exf5 {[%clk 0:01:08]}  dxc3 {[%clk 0:01:42]} 15. f6 {[%clk 0:01:08]}  Qxf6 {[%clk 0:01:41]} 16. bxc3 {[%clk 0:01:07]}  Qxc3 {[%clk 0:01:31]} 17. Ra3 {[%clk 0:01:07]}  Qf6 {[%clk 0:01:31]} 18. Bd2 {[%clk 0:00:58]}  Be6 {[%clk 0:00:53]} 19. Bc3 {[%clk 0:00:50]}  Qf7 {[%clk 0:00:53]} 20. Bxc6 {[%clk 0:00:46]}  bxc6 {[%clk 0:00:52]} 21. Qc1 {[%clk 0:00:45]}  g5 {[%clk 0:00:37]} 22. Bxg7+ {[%clk 0:00:44]}  Kxg7 {[%clk 0:00:30]} 23. Qxc6 {[%clk 0:00:44]}  Bd5 {[%clk 0:00:30]} 24. Qc3+ {[%clk 0:00:44]}  Kg8 {[%clk 0:00:30]} 25. Qc2 {[%clk 0:00:40]}  Rab8 {[%clk 0:00:27]} 26. Rc3 {[%clk 0:00:38]}  c6 {[%clk 0:00:26]} 27. Qd2 {[%clk 0:00:35]}  Rb5 {[%clk 0:00:24]} 28. Nd4 {[%clk 0:00:33]}  Rxa5 {[%clk 0:00:23]} 29. Nxc6 {[%clk 0:00:33]}  Bxc6 {[%clk 0:00:21]} 30. Rxc6 {[%clk 0:00:34]}  Rd5 {[%clk 0:00:20]} 31. Qe2 {[%clk 0:00:30]}  a5 {[%clk 0:00:19]} 32. Qc2 {[%clk 0:00:24]}  Re8 {[%clk 0:00:18]} 33. Rc7 {[%clk 0:00:23]}  Qf5 {[%clk 0:00:17]} 34. Qc4 {[%clk 0:00:23]}  Kh8 {[%clk 0:00:17]} 35. Ra7 {[%clk 0:00:19]}  Rc5 {[%clk 0:00:15]} 36. Qd4+ {[%clk 0:00:19]}  Qe5 {[%clk 0:00:15]} 37. Qd3 {[%clk 0:00:19]}  Re7 {[%clk 0:00:15]} 38. Ra8+ {[%clk 0:00:17]}  Kg7 {[%clk 0:00:15]} 39. Rb1 {[%clk 0:00:14]}  Qf6 {[%clk 0:00:14]} 40. Qd2 {[%clk 0:00:14]}  Rce5 {[%clk 0:00:13]} 41. Rab8 {[%clk 0:00:13]}  Re2 {[%clk 0:00:12]} 42. Qd5 {[%clk 0:00:12]}  Qxf2+ {[%clk 0:00:12]} 43. Kh1 {[%clk 0:00:12]}  Re1+ {[%clk 0:00:12]} 44. Rxe1 {[%clk 0:00:12]}  Rxe1+ {[%clk 0:00:12]} 45. Kh2 {[%clk 0:00:12]}  Qf4+ {[%clk 0:00:13]} 0-1


[Site "https://www.chess.com"]

[Event "Titled Tuesday Blitz July 05 Late 2022"]
[White "Kozionov, Kirill"]
[Black "Maksimovic, Bojan"]
[WhiteFideId "24101729"]
[BlackFideId "14408120"]
[WhiteElo "2426"]
[BlackElo "2453"]
[Result "1/2-1/2"]
[Round "04"]
[TimeControl "180+1"]
[Date "2022.07.05"]
[WhiteClock "0:00:06"]
[BlackClock "0:00:03"]

1. b3 {[%clk 0:02:59]}  Nf6 {[%clk 0:02:58]} 2. Bb2 {[%clk 0:02:59]}  g6 {[%clk 0:02:59]} 3. Nf3 {[%clk 0:02:58]}  Bg7 {[%clk 0:02:59]} 4. g3 {[%clk 0:02:59]}  d6 {[%clk 0:02:59]} 5. d4 {[%clk 0:02:59]}  c5 {[%clk 0:03:00]} 6. c4 {[%clk 0:02:54]}  Ne4 {[%clk 0:02:58]} 7. Bg2 {[%clk 0:02:45]}  Qa5+ {[%clk 0:02:57]} 8. Nbd2 {[%clk 0:02:45]}  O-O {[%clk 0:02:52]} 9. e3 {[%clk 0:02:41]}  Nc6 {[%clk 0:02:49]} 10. h3 {[%clk 0:02:22]}  Bf5 {[%clk 0:02:21]} 11. g4 {[%clk 0:02:06]}  Nxd2 {[%clk 0:02:10]} 12. Qxd2 {[%clk 0:01:58]}  Qxd2+ {[%clk 0:02:03]} 13. Nxd2 {[%clk 0:01:59]}  Bd3 {[%clk 0:01:41]} 14. Bxc6 {[%clk 0:01:54]}  bxc6 {[%clk 0:01:41]} 15. O-O-O {[%clk 0:01:54]}  cxd4 {[%clk 0:01:35]} 16. exd4 {[%clk 0:01:53]}  Bh6 {[%clk 0:01:26]} 17. Rde1 {[%clk 0:01:28]}  Rfe8 {[%clk 0:01:20]} 18. h4 {[%clk 0:01:27]}  Bf4 {[%clk 0:01:19]} 19. Rh3 {[%clk 0:01:25]}  Bxc4 {[%clk 0:00:51]} 20. bxc4 {[%clk 0:01:24]}  Rab8 {[%clk 0:00:52]} 21. Bc3 {[%clk 0:01:13]}  h6 {[%clk 0:00:40]} 22. Kc2 {[%clk 0:01:13]}  d5 {[%clk 0:00:40]} 23. c5 {[%clk 0:01:04]}  f6 {[%clk 0:00:29]} 24. Rb1 {[%clk 0:00:46]}  Rxb1 {[%clk 0:00:28]} 25. Kxb1 {[%clk 0:00:46]}  e5 {[%clk 0:00:27]} 26. Nb3 {[%clk 0:00:34]}  e4 {[%clk 0:00:24]} 27. h5 {[%clk 0:00:31]}  g5 {[%clk 0:00:23]} 28. Na5 {[%clk 0:00:30]}  Re6 {[%clk 0:00:23]} 29. Kc2 {[%clk 0:00:31]}  Kg7 {[%clk 0:00:23]} 30. Rh1 {[%clk 0:00:31]}  Bc7 {[%clk 0:00:09]} 31. Kd2 {[%clk 0:00:25]}  f5 {[%clk 0:00:07]} 32. gxf5 {[%clk 0:00:23]}  Rf6 {[%clk 0:00:07]} 33. Rb1 {[%clk 0:00:23]}  Rxf5 {[%clk 0:00:07]} 34. Ke2 {[%clk 0:00:19]}  Bxa5 {[%clk 0:00:03]} 35. Bxa5 {[%clk 0:00:19]}  Rf7 {[%clk 0:00:04]} 36. Rb8 {[%clk 0:00:16]}  Rf3 {[%clk 0:00:04]} 37. Rb7+ {[%clk 0:00:14]}  Kf6 {[%clk 0:00:04]} 38. Rxa7 {[%clk 0:00:12]}  Rh3 {[%clk 0:00:02]} 39. Bd8+ {[%clk 0:00:11]}  Kf5 {[%clk 0:00:02]} 40. a4 {[%clk 0:00:10]}  Rxh5 {[%clk 0:00:02]} 41. a5 {[%clk 0:00:10]}  Rh3 {[%clk 0:00:03]} 42. a6 {[%clk 0:00:07]}  Ra3 {[%clk 0:00:02]} 43. Ra8 {[%clk 0:00:07]}  e3 {[%clk 0:00:02]} 44. fxe3 {[%clk 0:00:06]}  Ke4 {[%clk 0:00:02]} 45. a7 {[%clk 0:00:06]}  Ra2+ {[%clk 0:00:03]} 46. Kd1 {[%clk 0:00:05]}  Kd3 {[%clk 0:00:03]} 47. Kc1 {[%clk 0:00:06]}  g4 {[%clk 0:00:04]} 48. Bc7 {[%clk 0:00:05]}  h5 {[%clk 0:00:03]} 49. Bg3 {[%clk 0:00:05]}  Kc4 {[%clk 0:00:02]} 50. Kb1 {[%clk 0:00:05]}  Ra5 {[%clk 0:00:02]} 51. Kb2 {[%clk 0:00:06]}  Rb5+ {[%clk 0:00:02]} 52. Kc2 {[%clk 0:00:06]}  Ra5 {[%clk 0:00:03]} 53. Kd2 {[%clk 0:00:06]}  Ra2+ {[%clk 0:00:03]} 54. Ke1 {[%clk 0:00:07]}  Kd3 {[%clk 0:00:04]} 55. Kf1 {[%clk 0:00:07]}  Ra1+ {[%clk 0:00:04]} 56. Kg2 {[%clk 0:00:07]}  Ra2+ {[%clk 0:00:05]} 57. Kf1 {[%clk 0:00:07]}  Ra1+ {[%clk 0:00:05]} 58. Kg2 {[%clk 0:00:06]}  Ra2+ {[%clk 0:00:05]} 59. Bf2 {[%clk 0:00:07]}  h4 {[%clk 0:00:05]} 60. Kg1 {[%clk 0:00:07]}  Ra1+ {[%clk 0:00:05]} 61. Kg2 {[%clk 0:00:06]}  Ra2 {[%clk 0:00:05]} 62. Kf1 {[%clk 0:00:06]}  Ra1+ {[%clk 0:00:05]} 63. Kg2 {[%clk 0:00:06]}  Ra2 {[%clk 0:00:03]} 1/2-1/2


[Site "https://www.chess.com"]

[Event "Titled Tuesday Blitz July 05 Late 2022"]
[White "Kozlov, Gennady"]
[Black "Preotu, Razvan"]
[WhiteFideId "4191668"]
[BlackFideId "2613280"]
[WhiteElo "2392"]
[BlackElo "2407"]
[Result "1/2-1/2"]
[Round "04"]
[TimeControl "180+1"]
[Date "2022.07.05"]
[WhiteClock "0:01:46"]
[BlackClock "0:00:54"]

1. d4 {[%clk 0:02:59]}  Nf6 {[%clk 0:02:59]} 2. c4 {[%clk 0:02:59]}  g6 {[%clk 0:02:59]} 3. Nf3 {[%clk 0:02:59]}  Bg7 {[%clk 0:02:59]} 4. Nc3 {[%clk 0:02:59]}  d5 {[%clk 0:02:59]} 5. cxd5 {[%clk 0:02:59]}  Nxd5 {[%clk 0:03:00]} 6. e4 {[%clk 0:02:59]}  Nxc3 {[%clk 0:03:00]} 7. bxc3 {[%clk 0:03:00]}  c5 {[%clk 0:03:01]} 8. Bb5+ {[%clk 0:03:00]}  Nc6 {[%clk 0:03:00]} 9. O-O {[%clk 0:03:00]}  O-O {[%clk 0:02:59]} 10. Be3 {[%clk 0:02:54]}  Bg4 {[%clk 0:02:54]} 11. Bxc6 {[%clk 0:02:45]}  bxc6 {[%clk 0:02:55]} 12. Qd2 {[%clk 0:02:45]}  Bxf3 {[%clk 0:02:52]} 13. gxf3 {[%clk 0:02:46]}  cxd4 {[%clk 0:02:50]} 14. cxd4 {[%clk 0:02:47]}  c5 {[%clk 0:02:50]} 15. Rad1 {[%clk 0:02:43]}  cxd4 {[%clk 0:02:50]} 16. Bxd4 {[%clk 0:02:43]}  Bxd4 {[%clk 0:02:49]} 17. Qxd4 {[%clk 0:02:44]}  Qa5 {[%clk 0:02:49]} 18. Qd2 {[%clk 0:02:40]}  Qa3 {[%clk 0:02:44]} 19. Kg2 {[%clk 0:02:38]}  Rab8 {[%clk 0:02:36]} 20. Qe2 {[%clk 0:02:37]}  Rb2 {[%clk 0:02:34]} 21. Rd2 {[%clk 0:02:37]}  Rfb8 {[%clk 0:02:35]} 22. Rfd1 {[%clk 0:02:35]}  Qxa2 {[%clk 0:02:32]} 23. Rxb2 {[%clk 0:02:30]}  Rxb2 {[%clk 0:02:29]} 24. Rd8+ {[%clk 0:02:30]}  Kg7 {[%clk 0:02:29]} 25. Qe3 {[%clk 0:02:30]}  Rb7 {[%clk 0:01:35]} 26. Qc3+ {[%clk 0:02:18]}  f6 {[%clk 0:01:35]} 27. Qc8 {[%clk 0:02:19]}  Rb2 {[%clk 0:01:08]} 28. Qc5 {[%clk 0:02:15]}  Rb7 {[%clk 0:00:53]} 29. Qc8 {[%clk 0:02:15]}  Rb2 {[%clk 0:00:53]} 30. Qc5 {[%clk 0:02:15]}  Rb7 {[%clk 0:00:54]} 31. Qc8 {[%clk 0:01:46]} 1/2-1/2


[Site "https://www.chess.com"]

[Event "Titled Tuesday Blitz July 05 Late 2022"]
[White "Kubatko, Ivan"]
[Black "Arabidze, Meri"]
[WhiteFideId "24111473"]
[BlackFideId "13604040"]
[WhiteElo "2285"]
[BlackElo "2335"]
[Result "1/2-1/2"]
[Round "04"]
[TimeControl "180+1"]
[Date "2022.07.06"]
[WhiteClock "0:00:04"]
[BlackClock "0:00:10"]

1. e4 {[%clk 0:03:00]}  c5 {[%clk 0:02:59]} 2. c3 {[%clk 0:02:59]}  Qa5 {[%clk 0:02:55]} 3. Na3 {[%clk 0:02:57]}  d6 {[%clk 0:02:48]} 4. Nf3 {[%clk 0:02:56]}  Nf6 {[%clk 0:02:47]} 5. Nc4 {[%clk 0:02:55]}  Qc7 {[%clk 0:02:47]} 6. e5 {[%clk 0:02:45]}  dxe5 {[%clk 0:02:46]} 7. Ncxe5 {[%clk 0:02:46]}  Nbd7 {[%clk 0:02:35]} 8. d4 {[%clk 0:02:46]}  e6 {[%clk 0:02:30]} 9. Bd3 {[%clk 0:02:44]}  cxd4 {[%clk 0:02:28]} 10. cxd4 {[%clk 0:02:44]}  Bb4+ {[%clk 0:02:28]} 11. Bd2 {[%clk 0:02:43]}  Bxd2+ {[%clk 0:02:28]} 12. Qxd2 {[%clk 0:02:43]}  O-O {[%clk 0:02:27]} 13. O-O {[%clk 0:02:42]}  Nb6 {[%clk 0:02:24]} 14. Rac1 {[%clk 0:02:38]}  Qd6 {[%clk 0:02:21]} 15. Rfd1 {[%clk 0:02:33]}  Nbd5 {[%clk 0:02:21]} 16. Qg5 {[%clk 0:02:23]}  Bd7 {[%clk 0:02:09]} 17. Qh4 {[%clk 0:02:02]}  h6 {[%clk 0:01:57]} 18. g4 {[%clk 0:01:54]}  Nf4 {[%clk 0:01:28]} 19. g5 {[%clk 0:01:41]}  hxg5 {[%clk 0:01:27]} 20. Nxg5 {[%clk 0:01:37]}  N4h5 {[%clk 0:01:12]} 21. Rc3 {[%clk 0:00:52]}  Bc6 {[%clk 0:00:51]} 22. Bh7+ {[%clk 0:00:28]}  Nxh7 {[%clk 0:00:47]} 23. Nxh7 {[%clk 0:00:26]}  g6 {[%clk 0:00:31]} 24. Nf6+ {[%clk 0:00:12]}  Nxf6 {[%clk 0:00:29]} 25. Qxf6 {[%clk 0:00:13]}  Qd8 {[%clk 0:00:25]} 26. Qxd8 {[%clk 0:00:05]}  Rfxd8 {[%clk 0:00:26]} 27. Nxc6 {[%clk 0:00:05]}  bxc6 {[%clk 0:00:27]} 28. Rxc6 {[%clk 0:00:06]}  Rd5 {[%clk 0:00:24]} 29. Rc7 {[%clk 0:00:05]}  a5 {[%clk 0:00:23]} 30. Rc5 {[%clk 0:00:04]}  Rad8 {[%clk 0:00:19]} 31. Rxd5 {[%clk 0:00:04]}  Rxd5 {[%clk 0:00:20]} 32. Kf1 {[%clk 0:00:04]}  Kf8 {[%clk 0:00:20]} 33. Ke2 {[%clk 0:00:04]}  Rh5 {[%clk 0:00:19]} 34. Rh1 {[%clk 0:00:04]}  Ke7 {[%clk 0:00:20]} 35. Ke3 {[%clk 0:00:04]}  Kd6 {[%clk 0:00:20]} 36. b3 {[%clk 0:00:04]}  Rh3+ {[%clk 0:00:20]} 37. f3 {[%clk 0:00:04]}  Kd5 {[%clk 0:00:20]} 38. a3 {[%clk 0:00:04]}  Kc6 {[%clk 0:00:17]} 39. b4 {[%clk 0:00:04]}  axb4 {[%clk 0:00:17]} 40. axb4 {[%clk 0:00:05]}  Kb5 {[%clk 0:00:18]} 41. Rc1 {[%clk 0:00:05]}  Rxh2 {[%clk 0:00:14]} 42. Rc7 {[%clk 0:00:05]}  Rh7 {[%clk 0:00:14]} 43. Rb7+ {[%clk 0:00:04]}  Kc6 {[%clk 0:00:14]} 44. Rb8 {[%clk 0:00:05]}  f5 {[%clk 0:00:13]} 45. Kf4 {[%clk 0:00:04]}  Rd7 {[%clk 0:00:12]} 46. Ke5 {[%clk 0:00:03]}  Rd5+ {[%clk 0:00:10]} 47. Kxe6 {[%clk 0:00:04]}  Rxd4 {[%clk 0:00:11]} 48. Kf6 {[%clk 0:00:04]}  Rf4 {[%clk 0:00:11]} 49. Kxg6 {[%clk 0:00:03]}  Rxf3 {[%clk 0:00:12]} 50. Kg5 {[%clk 0:00:04]}  Rf1 {[%clk 0:00:10]} 51. b5+ {[%clk 0:00:04]}  Kc7 {[%clk 0:00:10]} 52. Rf8 {[%clk 0:00:04]}  Rg1+ {[%clk 0:00:10]} 53. Kf4 {[%clk 0:00:03]}  Rf1+ {[%clk 0:00:10]} 54. Kg5 {[%clk 0:00:03]}  Rg1+ {[%clk 0:00:10]} 55. Kf4 {[%clk 0:00:04]}  Rf1+ {[%clk 0:00:10]} 56. Kg5 {[%clk 0:00:04]} 1/2-1/2


[Site "https://www.chess.com"]

[Event "Titled Tuesday Blitz July 05 Late 2022"]
[White "Lashkin, Jegor"]
[Black "Martinez Alcantara, Jose Eduardo"]
[WhiteFideId "13907808"]
[BlackFideId "3805662"]
[WhiteElo "2368"]
[BlackElo "2703"]
[Result "1/2-1/2"]
[Round "04"]
[TimeControl "180+1"]
[Date "2022.07.05"]
[WhiteClock "0:01:27"]
[BlackClock "0:01:53"]

1. d4 {[%clk 0:03:00]}  Nf6 {[%clk 0:03:00]} 2. c4 {[%clk 0:03:01]}  e6 {[%clk 0:03:00]} 3. Nf3 {[%clk 0:03:01]}  Bb4+ {[%clk 0:03:01]} 4. Bd2 {[%clk 0:03:01]}  c5 {[%clk 0:03:02]} 5. Bxb4 {[%clk 0:03:01]}  cxb4 {[%clk 0:03:02]} 6. a3 {[%clk 0:03:01]}  bxa3 {[%clk 0:03:02]} 7. Rxa3 {[%clk 0:03:01]}  O-O {[%clk 0:03:03]} 8. Nc3 {[%clk 0:03:00]}  b6 {[%clk 0:03:03]} 9. e3 {[%clk 0:02:49]}  Bb7 {[%clk 0:03:03]} 10. Be2 {[%clk 0:02:49]}  a5 {[%clk 0:03:03]} 11. O-O {[%clk 0:02:49]}  Na6 {[%clk 0:03:03]} 12. Qb3 {[%clk 0:02:41]}  Nb4 {[%clk 0:02:58]} 13. Na2 {[%clk 0:02:39]}  Nxa2 {[%clk 0:02:58]} 14. Qxa2 {[%clk 0:02:38]}  Rc8 {[%clk 0:02:52]} 15. Qb3 {[%clk 0:02:32]}  Qc7 {[%clk 0:02:45]} 16. Raa1 {[%clk 0:02:27]}  d6 {[%clk 0:02:39]} 17. Qa3 {[%clk 0:02:21]}  Ne4 {[%clk 0:02:27]} 18. b4 {[%clk 0:02:18]}  Ra8 {[%clk 0:02:27]} 19. Rfc1 {[%clk 0:02:11]}  h6 {[%clk 0:02:23]} 20. Qb2 {[%clk 0:02:07]}  Rfc8 {[%clk 0:02:16]} 21. Nd2 {[%clk 0:02:03]}  Nxd2 {[%clk 0:02:06]} 22. Qxd2 {[%clk 0:02:04]}  e5 {[%clk 0:02:07]} 23. h3 {[%clk 0:01:29]}  Rd8 {[%clk 0:02:00]} 24. Ra3 {[%clk 0:01:27]}  exd4 {[%clk 0:01:53]} 25. exd4 {[%clk 0:01:27]} 1/2-1/2


[Site "https://www.chess.com"]